[Event "Titled Tuesday Blitz March 28 Early 2023"]
[White "Hansen, Eric"]
[Black "Samant Aditya S"]
[WhiteFideId "2606771"]
[BlackFideId "35080580"]
[WhiteElo "2569"]
[BlackElo "2362"]
[Result "0-1"]
[Round "09"]
[TimeControl "180+2"]
[Date "2023.03.28"]
[WhiteClock "0:00:01"]
[BlackClock "0:00:04"]

1. e4 {[%clk 0:02:59]}  c5 {[%clk 0:02:58]} 2. Nf3 {[%clk 0:02:59]}  d6 {[%clk 0:02:59]} 3. d4 {[%clk 0:02:59]}  cxd4 {[%clk 0:03:00]} 4. Nxd4 {[%clk 0:03:00]}  Nf6 {[%clk 0:03:00]} 5. Nc3 {[%clk 0:03:01]}  Nc6 {[%clk 0:03:01]} 6. Bg5 {[%clk 0:03:00]}  Qb6 {[%clk 0:03:01]} 7. Nb3 {[%clk 0:02:57]}  e6 {[%clk 0:03:00]} 8. Qd2 {[%clk 0:02:57]}  a6 {[%clk 0:02:55]} 9. O-O-O {[%clk 0:02:57]}  Be7 {[%clk 0:02:55]} 10. f3 {[%clk 0:02:56]}  O-O {[%clk 0:02:53]} 11. g4 {[%clk 0:02:55]}  Qc7 {[%clk 0:02:45]} 12. h4 {[%clk 0:02:49]}  b5 {[%clk 0:02:38]} 13. Ne2 {[%clk 0:02:11]}  Ne5 {[%clk 0:02:10]} 14. Nbd4 {[%clk 0:02:05]}  Bb7 {[%clk 0:01:40]} 15. Ng3 {[%clk 0:02:05]}  Rac8 {[%clk 0:01:26]} 16. Kb1 {[%clk 0:02:01]}  Nxf3 {[%clk 0:00:45]} 17. Nxf3 {[%clk 0:01:37]}  Nxe4 {[%clk 0:00:46]} 18. Nxe4 {[%clk 0:01:07]}  Bxe4 {[%clk 0:00:47]} 19. Bd3 {[%clk 0:01:08]}  Bxf3 {[%clk 0:00:46]} 20. Bxh7+ {[%clk 0:01:09]}  Kxh7 {[%clk 0:00:18]} 21. Qd3+ {[%clk 0:01:09]}  Kg8 {[%clk 0:00:12]} 22. Qxf3 {[%clk 0:01:06]}  Qxc2+ {[%clk 0:00:10]} 23. Ka1 {[%clk 0:01:06]}  f6 {[%clk 0:00:09]} 24. Be3 {[%clk 0:00:55]}  d5 {[%clk 0:00:09]} 25. h5 {[%clk 0:00:49]}  Qe4 {[%clk 0:00:09]} 26. Qh3 {[%clk 0:00:47]}  Rc2 {[%clk 0:00:08]} 27. Rhe1 {[%clk 0:00:44]}  Qb4 {[%clk 0:00:04]} 28. Bd4 {[%clk 0:00:39]}  e5 {[%clk 0:00:05]} 29. Bc3 {[%clk 0:00:29]}  Qc4 {[%clk 0:00:05]} 30. Kb1 {[%clk 0:00:21]}  Re2 {[%clk 0:00:03]} 31. Rxe2 {[%clk 0:00:17]}  Qxe2 {[%clk 0:00:04]} 32. Rxd5 {[%clk 0:00:06]}  b4 {[%clk 0:00:04]} 33. Bxe5 {[%clk 0:00:01]}  fxe5 {[%clk 0:00:04]} 0-1


[Site "https://www.chess.com"]

[Event "Titled Tuesday Blitz March 28 Early 2023"]
[White "Moroni, Luca Jr"]
[Black "Subelj, Jan"]
[WhiteFideId "865834"]
[BlackFideId "14618583"]
[WhiteElo "2569"]
[BlackElo "2474"]
[Result "0-1"]
[Round "09"]
[TimeControl "180+2"]
[Date "2023.03.28"]
[WhiteClock "0:00:07"]
[BlackClock "0:00:18"]

1. b3 {[%clk 0:03:00]}  b6 {[%clk 0:02:58]} 2. Bb2 {[%clk 0:03:01]}  Bb7 {[%clk 0:02:59]} 3. e3 {[%clk 0:03:01]}  e6 {[%clk 0:02:59]} 4. Nf3 {[%clk 0:03:01]}  Nf6 {[%clk 0:03:00]} 5. Rg1 {[%clk 0:02:44]}  Be7 {[%clk 0:02:37]} 6. g4 {[%clk 0:02:42]}  O-O {[%clk 0:02:37]} 7. g5 {[%clk 0:02:42]}  Ne4 {[%clk 0:02:36]} 8. h4 {[%clk 0:02:41]}  d6 {[%clk 0:02:34]} 9. d3 {[%clk 0:02:37]}  Nc5 {[%clk 0:02:34]} 10. Nbd2 {[%clk 0:02:33]}  Ncd7 {[%clk 0:02:31]} 11. h5 {[%clk 0:02:32]}  e5 {[%clk 0:02:30]} 12. Bh3 {[%clk 0:02:31]}  Re8 {[%clk 0:02:23]} 13. Ne4 {[%clk 0:02:26]}  Nf8 {[%clk 0:02:20]} 14. Qe2 {[%clk 0:02:23]}  Nbd7 {[%clk 0:02:19]} 15. O-O-O {[%clk 0:02:22]}  a5 {[%clk 0:02:19]} 16. Nh4 {[%clk 0:02:13]}  d5 {[%clk 0:02:16]} 17. Bxd7 {[%clk 0:02:08]}  Nxd7 {[%clk 0:02:12]} 18. Ng3 {[%clk 0:02:07]}  Bxg5 {[%clk 0:02:09]} 19. Ngf5 {[%clk 0:01:47]}  Bxh4 {[%clk 0:02:04]} 20. Nxg7 {[%clk 0:01:38]}  Kh8 {[%clk 0:02:01]} 21. Nxe8 {[%clk 0:01:36]}  Qxe8 {[%clk 0:02:02]} 22. Qg4 {[%clk 0:01:35]}  Bf6 {[%clk 0:01:59]} 23. f4 {[%clk 0:01:33]}  Qe6 {[%clk 0:01:52]} 24. f5 {[%clk 0:01:21]}  Qe7 {[%clk 0:01:51]} 25. h6 {[%clk 0:01:21]}  a4 {[%clk 0:01:50]} 26. Rg3 {[%clk 0:01:19]}  a3 {[%clk 0:01:40]} 27. Ba1 {[%clk 0:01:16]}  Re8 {[%clk 0:01:38]} 28. Rdg1 {[%clk 0:01:15]}  Qd8 {[%clk 0:01:38]} 29. Qh5 {[%clk 0:01:12]}  Rf8 {[%clk 0:01:35]} 30. Rg7 {[%clk 0:01:12]}  Qe8 {[%clk 0:01:33]} 31. Bc3 {[%clk 0:01:04]}  c5 {[%clk 0:01:32]} 32. Be1 {[%clk 0:01:02]}  e4 {[%clk 0:01:28]} 33. dxe4 {[%clk 0:00:58]}  Qe5 {[%clk 0:01:23]} 34. Qxf7 {[%clk 0:00:41]}  Qb2+ {[%clk 0:01:13]} 35. Kd1 {[%clk 0:00:40]}  Qa1+ {[%clk 0:00:34]} 36. Ke2 {[%clk 0:00:38]}  Ba6+ {[%clk 0:00:34]} 37. c4 {[%clk 0:00:26]}  Bxc4+ {[%clk 0:00:26]} 38. bxc4 {[%clk 0:00:24]}  Qxa2+ {[%clk 0:00:27]} 39. Bd2 {[%clk 0:00:15]}  Qxc4+ {[%clk 0:00:26]} 40. Ke1 {[%clk 0:00:15]}  Bh4+ {[%clk 0:00:26]} 41. Kd1 {[%clk 0:00:11]}  Qb3+ {[%clk 0:00:25]} 42. Ke2 {[%clk 0:00:12]}  Qb5+ {[%clk 0:00:20]} 43. Kf3 {[%clk 0:00:10]}  Ne5+ {[%clk 0:00:20]} 44. Kf4 {[%clk 0:00:09]}  Nxf7 {[%clk 0:00:20]} 45. Bc3 {[%clk 0:00:07]}  d4 {[%clk 0:00:20]} 46. exd4 {[%clk 0:00:08]}  Bf6 {[%clk 0:00:20]} 47. e5 {[%clk 0:00:07]}  cxd4 {[%clk 0:00:17]} 48. Bxd4 {[%clk 0:00:05]}  Bxe5+ {[%clk 0:00:17]} 49. Bxe5 {[%clk 0:00:06]}  Qxe5+ {[%clk 0:00:18]} 50. Kg4 {[%clk 0:00:07]}  Nxh6+ {[%clk 0:00:17]} 51. Kh5 {[%clk 0:00:07]}  Qxg7 {[%clk 0:00:18]} 0-1


[Site "https://www.chess.com"]

[Event "Titled Tuesday Blitz March 28 Early 2023"]
[White "Rakhmanov, Aleksandr"]
[Black "Aaditya Dhingra"]
[WhiteFideId "4173708"]
[BlackFideId "25678191"]
[WhiteElo "2530"]
[BlackElo "2083"]
[Result "1-0"]
[Round "09"]
[TimeControl "180+2"]
[Date "2023.03.28"]
[WhiteClock "0:00:17"]
[BlackClock "0:00:03"]

1. c4 {[%clk 0:03:00]}  c6 {[%clk 0:02:58]} 2. d4 {[%clk 0:03:00]}  d5 {[%clk 0:02:58]} 3. cxd5 {[%clk 0:03:01]}  cxd5 {[%clk 0:02:58]} 4. Nf3 {[%clk 0:03:02]}  Nf6 {[%clk 0:02:57]} 5. Nc3 {[%clk 0:03:02]}  Nc6 {[%clk 0:02:57]} 6. Bf4 {[%clk 0:03:03]}  Bf5 {[%clk 0:02:54]} 7. e3 {[%clk 0:03:01]}  e6 {[%clk 0:02:53]} 8. Qb3 {[%clk 0:03:01]}  Bb4 {[%clk 0:02:13]} 9. Ne5 {[%clk 0:03:01]}  Qe7 {[%clk 0:02:07]} 10. Bb5 {[%clk 0:02:49]}  Rc8 {[%clk 0:02:06]} 11. O-O {[%clk 0:02:47]}  O-O {[%clk 0:02:05]} 12. Bxc6 {[%clk 0:02:43]}  bxc6 {[%clk 0:02:04]} 13. Rfc1 {[%clk 0:02:44]}  c5 {[%clk 0:02:01]} 14. dxc5 {[%clk 0:02:40]}  Bxc5 {[%clk 0:01:58]} 15. Na4 {[%clk 0:02:30]}  Bd6 {[%clk 0:01:56]} 16. Nc6 {[%clk 0:02:30]}  Qd7 {[%clk 0:01:54]} 17. Bxd6 {[%clk 0:02:27]}  Qxd6 {[%clk 0:01:53]} 18. Nxa7 {[%clk 0:02:13]}  Rxc1+ {[%clk 0:00:55]} 19. Rxc1 {[%clk 0:02:14]}  Ng4 {[%clk 0:00:52]} 20. f4 {[%clk 0:02:12]}  Qa6 {[%clk 0:00:44]} 21. Nb5 {[%clk 0:02:07]}  Qa5 {[%clk 0:00:42]} 22. Nac3 {[%clk 0:02:00]}  Nxe3 {[%clk 0:00:35]} 23. Nd4 {[%clk 0:01:59]}  Bg6 {[%clk 0:00:31]} 24. Nc6 {[%clk 0:01:44]}  Qc7 {[%clk 0:00:27]} 25. Ne2 {[%clk 0:01:32]}  Nc4 {[%clk 0:00:24]} 26. Ned4 {[%clk 0:01:21]}  Qxf4 {[%clk 0:00:21]} 27. Rf1 {[%clk 0:01:19]}  Qd6 {[%clk 0:00:20]} 28. Qb7 {[%clk 0:01:14]}  e5 {[%clk 0:00:18]} 29. Ne7+ {[%clk 0:01:12]}  Kh8 {[%clk 0:00:18]} 30. Ndc6 {[%clk 0:01:06]}  Nd2 {[%clk 0:00:15]} 31. Rc1 {[%clk 0:01:02]}  e4 {[%clk 0:00:14]} 32. Nd4 {[%clk 0:00:55]}  Qf4 {[%clk 0:00:13]} 33. h3 {[%clk 0:00:40]}  Qe3+ {[%clk 0:00:12]} 34. Kh1 {[%clk 0:00:40]}  Qxd4 {[%clk 0:00:13]} 35. Rc8 {[%clk 0:00:41]}  h5 {[%clk 0:00:09]} 36. Rxf8+ {[%clk 0:00:40]}  Kh7 {[%clk 0:00:09]} 37. Qb8 {[%clk 0:00:31]}  Kh6 {[%clk 0:00:09]} 38. h4 {[%clk 0:00:21]}  Nc4 {[%clk 0:00:05]} 39. Qf4+ {[%clk 0:00:20]}  Kh7 {[%clk 0:00:05]} 40. Qb8 {[%clk 0:00:16]}  Qd1+ {[%clk 0:00:02]} 41. Kh2 {[%clk 0:00:17]}  Kh6 {[%clk 0:00:03]} 42. Rh8+ {[%clk 0:00:17]}  Bh7 {[%clk 0:00:03]} 43. Qf4+ {[%clk 0:00:17]} 1-0


[Site "https://www.chess.com"]

[Event "Titled Tuesday Blitz March 28 Early 2023"]
[White "Real_OceanStorm"]
[Black "Shivakumar, Shawnak"]
[BlackFideId "30940192"]
[WhiteElo "2796"]
[BlackElo "2089"]
[Result "1-0"]
[Round "09"]
[TimeControl "180+2"]
[Date "2023.03.28"]
[WhiteClock "0:01:25"]
[BlackClock "0:00:46"]

1. e4 {[%clk 0:02:49]}  e5 {[%clk 0:02:58]} 2. Nf3 {[%clk 0:02:49]}  Nf6 {[%clk 0:02:59]} 3. d4 {[%clk 0:02:48]}  Nxe4 {[%clk 0:02:59]} 4. Nxe5 {[%clk 0:02:47]}  d6 {[%clk 0:02:51]} 5. Nf3 {[%clk 0:02:46]}  d5 {[%clk 0:02:51]} 6. Nbd2 {[%clk 0:02:45]}  Nc6 {[%clk 0:02:49]} 7. c3 {[%clk 0:02:46]}  Bd6 {[%clk 0:02:49]} 8. Nxe4 {[%clk 0:02:46]}  dxe4 {[%clk 0:02:49]} 9. Ng5 {[%clk 0:02:46]}  O-O {[%clk 0:02:47]} 10. Bc4 {[%clk 0:02:46]}  h6 {[%clk 0:02:43]} 11. Nxe4 {[%clk 0:02:44]}  Re8 {[%clk 0:02:34]} 12. Qf3 {[%clk 0:02:44]}  Qe7 {[%clk 0:02:32]} 13. O-O {[%clk 0:02:41]}  Qxe4 {[%clk 0:02:29]} 14. Qxf7+ {[%clk 0:02:40]}  Kh8 {[%clk 0:02:26]} 15. f3 {[%clk 0:02:29]}  Qe7 {[%clk 0:02:23]} 16. Qh5 {[%clk 0:02:29]}  Be6 {[%clk 0:02:21]} 17. Bd3 {[%clk 0:02:26]}  Qf6 {[%clk 0:02:12]} 18. Bg6 {[%clk 0:02:26]}  Re7 {[%clk 0:02:06]} 19. Be3 {[%clk 0:02:11]}  Bf7 {[%clk 0:01:58]} 20. Bxf7 {[%clk 0:02:08]}  Qxf7 {[%clk 0:01:56]} 21. Qb5 {[%clk 0:02:05]}  Rxe3 {[%clk 0:01:51]} 22. Qxb7 {[%clk 0:02:04]}  Qe8 {[%clk 0:01:51]} 23. b4 {[%clk 0:01:59]}  Rb8 {[%clk 0:01:45]} 24. Qa6 {[%clk 0:01:59]}  Rb6 {[%clk 0:01:43]} 25. Qc4 {[%clk 0:01:58]}  Qh5 {[%clk 0:01:41]} 26. g3 {[%clk 0:01:58]}  Re2 {[%clk 0:01:40]} 27. Qxe2 {[%clk 0:01:56]}  a5 {[%clk 0:01:39]} 28. bxa5 {[%clk 0:01:56]}  Qxa5 {[%clk 0:01:37]} 29. Qe8+ {[%clk 0:01:55]}  Kh7 {[%clk 0:01:36]} 30. Rfd1 {[%clk 0:01:55]}  Qxc3 {[%clk 0:01:33]} 31. Qe4+ {[%clk 0:01:54]}  Kh8 {[%clk 0:01:33]} 32. Rac1 {[%clk 0:01:54]}  Qa3 {[%clk 0:01:10]} 33. Rxc6 {[%clk 0:01:26]}  Rb2 {[%clk 0:00:56]} 34. Rc2 {[%clk 0:01:25]}  Rxc2 {[%clk 0:00:53]} 35. Qxc2 {[%clk 0:01:25]}  Qxf3 {[%clk 0:00:52]} 36. Re1 {[%clk 0:01:25]}  Qd5 {[%clk 0:00:46]} 37. Re8+ {[%clk 0:01:25]} 1-0


[Site "https://www.chess.com"]

[Event "Titled Tuesday Blitz March 28 Early 2023"]
[White "Naroditsky, Daniel"]
[Black "Zhao, Jun"]
[WhiteFideId "2026961"]
[BlackFideId "8602522"]
[WhiteElo "2633"]
[BlackElo "2547"]
[Result "0-1"]
[Round "09"]
[TimeControl "180+2"]
[Date "2023.03.28"]
[WhiteClock "0:00:03"]
[BlackClock "0:00:09"]

1. d4 {[%clk 0:03:00]}  Nf6 {[%clk 0:02:54]} 2. Nc3 {[%clk 0:03:00]}  d5 {[%clk 0:02:54]} 3. Bf4 {[%clk 0:02:59]}  e6 {[%clk 0:02:53]} 4. Nb5 {[%clk 0:02:59]}  Na6 {[%clk 0:02:53]} 5. e3 {[%clk 0:02:59]}  c6 {[%clk 0:02:52]} 6. Nc3 {[%clk 0:02:58]}  b6 {[%clk 0:02:52]} 7. Nf3 {[%clk 0:02:57]}  Bb7 {[%clk 0:02:47]} 8. Ne5 {[%clk 0:02:52]}  Nc7 {[%clk 0:02:40]} 9. Bd3 {[%clk 0:02:51]}  Nd7 {[%clk 0:02:40]} 10. Qh5 {[%clk 0:02:47]}  g6 {[%clk 0:02:33]} 11. Qf3 {[%clk 0:02:46]}  Bg7 {[%clk 0:02:24]} 12. Nxf7 {[%clk 0:02:40]}  Kxf7 {[%clk 0:02:19]} 13. Bxc7+ {[%clk 0:02:41]}  Qf6 {[%clk 0:02:20]} 14. Qg3 {[%clk 0:02:38]}  e5 {[%clk 0:02:18]} 15. O-O {[%clk 0:02:31]}  Rac8 {[%clk 0:02:03]} 16. Bxe5 {[%clk 0:02:27]}  Nxe5 {[%clk 0:02:04]} 17. dxe5 {[%clk 0:02:28]}  Qxe5 {[%clk 0:02:04]} 18. f4 {[%clk 0:02:28]}  Qd6 {[%clk 0:01:56]} 19. Qh3 {[%clk 0:02:25]}  Bf6 {[%clk 0:01:44]} 20. e4 {[%clk 0:02:22]}  Bxc3 {[%clk 0:01:32]} 21. bxc3 {[%clk 0:02:19]}  dxe4 {[%clk 0:01:22]} 22. Bxe4 {[%clk 0:02:19]}  Rce8 {[%clk 0:01:13]} 23. Rae1 {[%clk 0:01:52]}  Ba6 {[%clk 0:01:08]} 24. Bd3 {[%clk 0:01:30]}  Bxd3 {[%clk 0:01:03]} 25. cxd3 {[%clk 0:01:31]}  Kg7 {[%clk 0:00:42]} 26. d4 {[%clk 0:01:15]}  Rhf8 {[%clk 0:00:36]} 27. Re5 {[%clk 0:01:11]}  Re7 {[%clk 0:00:31]} 28. Rfe1 {[%clk 0:01:04]}  Ref7 {[%clk 0:00:31]} 29. g3 {[%clk 0:01:03]}  Qa3 {[%clk 0:00:31]} 30. R5e3 {[%clk 0:00:57]}  Qxa2 {[%clk 0:00:31]} 31. Qg4 {[%clk 0:00:45]}  Qd5 {[%clk 0:00:28]} 32. Re5 {[%clk 0:00:43]}  Qc4 {[%clk 0:00:28]} 33. Qf3 {[%clk 0:00:43]}  a5 {[%clk 0:00:28]} 34. h4 {[%clk 0:00:43]}  a4 {[%clk 0:00:27]} 35. h5 {[%clk 0:00:44]}  a3 {[%clk 0:00:27]} 36. Re6 {[%clk 0:00:35]}  Rf6 {[%clk 0:00:24]} 37. Re7+ {[%clk 0:00:36]}  R8f7 {[%clk 0:00:24]} 38. Re8 {[%clk 0:00:34]}  a2 {[%clk 0:00:21]} 39. h6+ {[%clk 0:00:25]}  Kxh6 {[%clk 0:00:18]} 40. Rg8 {[%clk 0:00:26]}  Qd5 {[%clk 0:00:15]} 41. Qe2 {[%clk 0:00:05]}  Re6 {[%clk 0:00:11]} 42. Qh2+ {[%clk 0:00:02]}  Qh5 {[%clk 0:00:12]} 43. Qxh5+ {[%clk 0:00:02]}  Kxh5 {[%clk 0:00:12]} 44. Ra1 {[%clk 0:00:02]}  Ra7 {[%clk 0:00:10]} 45. Kf2 {[%clk 0:00:01]}  Kg4 {[%clk 0:00:11]} 46. f5 {[%clk 0:00:02]}  Kxf5 {[%clk 0:00:11]} 47. Kf3 {[%clk 0:00:03]}  Kf6 {[%clk 0:00:11]} 48. Rb8 {[%clk 0:00:03]}  b5 {[%clk 0:00:09]} 49. Rb6 {[%clk 0:00:03]}  Ra3 {[%clk 0:00:09]} 50. Kg2 {[%clk 0:00:02]}  Re2+ {[%clk 0:00:09]} 51. Kf1 {[%clk 0:00:02]}  Rb2 {[%clk 0:00:09]} 52. Rxc6+ {[%clk 0:00:03]}  Kg5 {[%clk 0:00:09]} 53. Rc5+ {[%clk 0:00:03]}  Kg4 {[%clk 0:00:09]} 0-1


[Site "https://www.chess.com"]

[Event "Titled Tuesday Blitz March 28 Early 2023"]
[White "Vlassov, Nikolai"]
[Black "Grigoriants, Sergey"]
[WhiteFideId "4103360"]
[BlackFideId "4130804"]
[WhiteElo "2324"]
[BlackElo "2502"]
[Result "1-0"]
[Round "09"]
[TimeControl "180+2"]
[Date "2023.03.28"]
[WhiteClock "0:00:10"]
[BlackClock "0:00:06"]

1. e4 {[%clk 0:03:00]}  c6 {[%clk 0:02:59]} 2. d4 {[%clk 0:03:00]}  d5 {[%clk 0:02:58]} 3. e5 {[%clk 0:03:01]}  Bf5 {[%clk 0:02:57]} 4. Nc3 {[%clk 0:03:01]}  e6 {[%clk 0:02:57]} 5. g4 {[%clk 0:03:01]}  Bg6 {[%clk 0:02:57]} 6. Nge2 {[%clk 0:03:01]}  c5 {[%clk 0:02:54]} 7. Be3 {[%clk 0:02:59]}  Nc6 {[%clk 0:02:50]} 8. dxc5 {[%clk 0:02:58]}  Nxe5 {[%clk 0:02:44]} 9. Nf4 {[%clk 0:02:56]}  Nf6 {[%clk 0:02:40]} 10. Bb5+ {[%clk 0:02:55]}  Nc6 {[%clk 0:02:40]} 11. h4 {[%clk 0:02:43]}  h5 {[%clk 0:02:35]} 12. Nxg6 {[%clk 0:02:25]}  fxg6 {[%clk 0:02:36]} 13. Qd3 {[%clk 0:02:16]}  Kf7 {[%clk 0:02:32]} 14. Bxc6 {[%clk 0:02:16]}  bxc6 {[%clk 0:02:31]} 15. gxh5 {[%clk 0:02:14]}  Rxh5 {[%clk 0:02:29]} 16. O-O-O {[%clk 0:01:57]}  Rb8 {[%clk 0:02:29]} 17. Rhg1 {[%clk 0:01:34]}  Rf5 {[%clk 0:02:28]} 18. Rg5 {[%clk 0:01:34]}  Qa5 {[%clk 0:02:18]} 19. Rdg1 {[%clk 0:01:29]}  Qb4 {[%clk 0:01:49]} 20. Rxg6 {[%clk 0:01:02]}  Qxb2+ {[%clk 0:01:42]} 21. Kd2 {[%clk 0:01:02]}  Qb4 {[%clk 0:01:42]} 22. Ke2 {[%clk 0:00:50]}  Qxh4 {[%clk 0:01:25]} 23. R6g5 {[%clk 0:00:37]}  Rb4 {[%clk 0:00:47]} 24. Rxf5 {[%clk 0:00:30]}  exf5 {[%clk 0:00:47]} 25. Qxf5 {[%clk 0:00:26]}  d4 {[%clk 0:00:43]} 26. Qg6+ {[%clk 0:00:16]}  Kg8 {[%clk 0:00:37]} 27. Bg5 {[%clk 0:00:17]}  Qh5+ {[%clk 0:00:30]} 28. Qxh5 {[%clk 0:00:17]}  Nxh5 {[%clk 0:00:31]} 29. Ne4 {[%clk 0:00:17]}  Ra4 {[%clk 0:00:29]} 30. Kd3 {[%clk 0:00:15]}  Kf7 {[%clk 0:00:24]} 31. Rb1 {[%clk 0:00:12]}  Nf6 {[%clk 0:00:24]} 32. Rb7+ {[%clk 0:00:12]}  Ke6 {[%clk 0:00:23]} 33. Bxf6 {[%clk 0:00:12]}  gxf6 {[%clk 0:00:23]} 34. f4 {[%clk 0:00:10]}  f5 {[%clk 0:00:10]} 35. Ng5+ {[%clk 0:00:09]}  Kd5 {[%clk 0:00:07]} 36. Rd7+ {[%clk 0:00:10]}  Kxc5 {[%clk 0:00:08]} 37. Ne6+ {[%clk 0:00:10]}  Kb6 {[%clk 0:00:08]} 38. Nxf8 {[%clk 0:00:11]}  c5 {[%clk 0:00:09]} 39. Ne6 {[%clk 0:00:09]}  Ra3+ {[%clk 0:00:08]} 40. Kd2 {[%clk 0:00:09]}  Rxa2 {[%clk 0:00:07]} 41. Rd6+ {[%clk 0:00:09]}  Kb5 {[%clk 0:00:06]} 42. Rd5 {[%clk 0:00:09]}  a5 {[%clk 0:00:06]} 43. Rxc5+ {[%clk 0:00:10]}  Kb4 {[%clk 0:00:07]} 44. Rxf5 {[%clk 0:00:10]}  Kc4 {[%clk 0:00:06]} 45. Rc5+ {[%clk 0:00:09]}  Kb4 {[%clk 0:00:07]} 46. Rc8 {[%clk 0:00:10]}  Ra1 {[%clk 0:00:06]} 47. Nxd4 {[%clk 0:00:10]} 1-0


[Site "https://www.chess.com"]

[Event "Titled Tuesday Blitz March 28 Early 2023"]
[White "Ismagilov, Damir"]
[Black "Zhigalko, Sergei"]
[WhiteFideId "34199982"]
[BlackFideId "13502956"]
[WhiteElo "2078"]
[BlackElo "2626"]
[Result "1-0"]
[Round "09"]
[TimeControl "180+2"]
[Date "2023.03.28"]
[WhiteClock "0:00:16"]
[BlackClock "0:00:01"]

1. d4 {[%clk 0:03:00]}  Nf6 {[%clk 0:02:59]} 2. Bf4 {[%clk 0:03:00]}  d5 {[%clk 0:02:52]} 3. e3 {[%clk 0:03:01]}  c5 {[%clk 0:02:53]} 4. c3 {[%clk 0:03:01]}  Nc6 {[%clk 0:02:53]} 5. Nd2 {[%clk 0:03:01]}  Bf5 {[%clk 0:02:39]} 6. Qb3 {[%clk 0:03:00]}  Qd7 {[%clk 0:02:35]} 7. Ngf3 {[%clk 0:02:57]}  c4 {[%clk 0:02:35]} 8. Qd1 {[%clk 0:02:57]}  e6 {[%clk 0:02:32]} 9. Nh4 {[%clk 0:02:56]}  b5 {[%clk 0:02:25]} 10. Nxf5 {[%clk 0:02:52]}  exf5 {[%clk 0:02:26]} 11. Be2 {[%clk 0:02:47]}  Bd6 {[%clk 0:02:26]} 12. O-O {[%clk 0:02:43]}  O-O {[%clk 0:02:26]} 13. Nf3 {[%clk 0:02:22]}  Rfe8 {[%clk 0:02:25]} 14. Qc2 {[%clk 0:02:12]}  Ne4 {[%clk 0:02:23]} 15. Rad1 {[%clk 0:02:01]}  b4 {[%clk 0:02:12]} 16. Bxd6 {[%clk 0:01:45]}  Qxd6 {[%clk 0:02:12]} 17. Nd2 {[%clk 0:01:44]}  Rab8 {[%clk 0:02:10]} 18. Nxe4 {[%clk 0:01:41]}  fxe4 {[%clk 0:02:11]} 19. b3 {[%clk 0:01:34]}  cxb3 {[%clk 0:02:02]} 20. axb3 {[%clk 0:01:35]}  bxc3 {[%clk 0:01:59]} 21. Qxc3 {[%clk 0:01:36]}  Rec8 {[%clk 0:01:54]} 22. Ba6 {[%clk 0:01:26]}  Rc7 {[%clk 0:01:50]} 23. Rc1 {[%clk 0:01:23]}  Rb6 {[%clk 0:01:48]} 24. Be2 {[%clk 0:01:08]}  g6 {[%clk 0:01:45]} 25. Qc5 {[%clk 0:01:03]}  Qe6 {[%clk 0:01:15]} 26. b4 {[%clk 0:00:51]}  Rcb7 {[%clk 0:00:32]} 27. b5 {[%clk 0:00:49]}  Ne7 {[%clk 0:00:32]} 28. Qa3 {[%clk 0:00:42]}  h5 {[%clk 0:00:28]} 29. Rc5 {[%clk 0:00:41]}  Qd6 {[%clk 0:00:16]} 30. Rfc1 {[%clk 0:00:34]}  Kg7 {[%clk 0:00:16]} 31. Qa2 {[%clk 0:00:34]}  Kh6 {[%clk 0:00:12]} 32. h3 {[%clk 0:00:34]}  Kg7 {[%clk 0:00:12]} 33. Qc2 {[%clk 0:00:33]}  Rd7 {[%clk 0:00:11]} 34. Rc7 {[%clk 0:00:33]}  Rb7 {[%clk 0:00:10]} 35. Rxd7 {[%clk 0:00:31]}  Rxd7 {[%clk 0:00:09]} 36. Qc5 {[%clk 0:00:32]}  Qb8 {[%clk 0:00:07]} 37. Ra1 {[%clk 0:00:27]}  Rc7 {[%clk 0:00:07]} 38. Qa3 {[%clk 0:00:26]}  Nf5 {[%clk 0:00:06]} 39. Bf1 {[%clk 0:00:26]}  Qc8 {[%clk 0:00:05]} 40. Qb3 {[%clk 0:00:20]}  Ne7 {[%clk 0:00:04]} 41. Ra6 {[%clk 0:00:17]}  Rc1 {[%clk 0:00:03]} 42. Qb2 {[%clk 0:00:16]}  Nf5 {[%clk 0:00:01]} 43. Ra1 {[%clk 0:00:16]} 1-0


[Site "https://www.chess.com"]

[Event "Titled Tuesday Blitz March 28 Early 2023"]
[White "Harsha Bharathakoti"]
[Black "Domingo Nunez, Alejandro"]
[WhiteFideId "5078776"]
[BlackFideId "22245561"]
[WhiteElo "2481"]
[BlackElo "2230"]
[Result "1/2-1/2"]
[Round "09"]
[TimeControl "180+2"]
[Date "2023.03.28"]
[WhiteClock "0:00:09"]
[BlackClock "0:00:09"]

1. Nf3 {[%clk 0:03:00]}  g6 {[%clk 0:03:00]} 2. d4 {[%clk 0:02:59]}  Bg7 {[%clk 0:03:00]} 3. e4 {[%clk 0:02:59]}  c6 {[%clk 0:03:00]} 4. Nc3 {[%clk 0:02:57]}  d5 {[%clk 0:03:01]} 5. Bd3 {[%clk 0:02:45]}  dxe4 {[%clk 0:03:00]} 6. Nxe4 {[%clk 0:02:46]}  Nf6 {[%clk 0:03:00]} 7. Nxf6+ {[%clk 0:02:46]}  exf6 {[%clk 0:03:01]} 8. h3 {[%clk 0:02:47]}  O-O {[%clk 0:03:01]} 9. O-O {[%clk 0:02:48]}  a5 {[%clk 0:03:01]} 10. c4 {[%clk 0:02:41]}  Na6 {[%clk 0:03:02]} 11. a3 {[%clk 0:02:38]}  Nc7 {[%clk 0:02:58]} 12. Be3 {[%clk 0:02:34]}  b5 {[%clk 0:02:58]} 13. Qc1 {[%clk 0:02:31]}  Re8 {[%clk 0:02:47]} 14. Bh6 {[%clk 0:02:21]}  bxc4 {[%clk 0:02:32]} 15. Bxc4 {[%clk 0:02:22]}  Bf5 {[%clk 0:02:32]} 16. Bxg7 {[%clk 0:02:19]}  Kxg7 {[%clk 0:02:32]} 17. Re1 {[%clk 0:02:06]}  Be4 {[%clk 0:02:32]} 18. Be2 {[%clk 0:01:49]}  Ne6 {[%clk 0:02:21]} 19. Qc3 {[%clk 0:01:36]}  Nf4 {[%clk 0:02:04]} 20. Bf1 {[%clk 0:01:36]}  Qd5 {[%clk 0:02:05]} 21. Re3 {[%clk 0:01:36]}  Bxf3 {[%clk 0:01:08]} 22. Rxf3 {[%clk 0:01:34]}  Ne2+ {[%clk 0:01:09]} 23. Bxe2 {[%clk 0:01:33]}  Rxe2 {[%clk 0:01:09]} 24. Rc1 {[%clk 0:01:33]}  Ra6 {[%clk 0:00:32]} 25. Re3 {[%clk 0:01:19]}  Rxe3 {[%clk 0:00:27]} 26. Qxe3 {[%clk 0:01:20]}  Rb6 {[%clk 0:00:25]} 27. Rc5 {[%clk 0:01:20]}  Qa2 {[%clk 0:00:25]} 28. Rxa5 {[%clk 0:01:19]}  Rxb2 {[%clk 0:00:23]} 29. Ra8 {[%clk 0:01:05]}  Re2 {[%clk 0:00:23]} 30. Qf3 {[%clk 0:01:05]}  Re1+ {[%clk 0:00:18]} 31. Kh2 {[%clk 0:01:06]}  Qe6 {[%clk 0:00:18]} 32. Qf4 {[%clk 0:01:04]}  Re4 {[%clk 0:00:18]} 33. Qb8 {[%clk 0:01:04]}  Kh6 {[%clk 0:00:17]} 34. Qf8+ {[%clk 0:00:57]}  Kh5 {[%clk 0:00:15]} 35. Rd8 {[%clk 0:00:54]}  Qf5 {[%clk 0:00:11]} 36. g4+ {[%clk 0:00:44]}  Rxg4 {[%clk 0:00:09]} 37. hxg4+ {[%clk 0:00:45]}  Kxg4 {[%clk 0:00:09]} 38. Qb4 {[%clk 0:00:06]}  Qxf2+ {[%clk 0:00:09]} 39. Kh1 {[%clk 0:00:07]}  Qf1+ {[%clk 0:00:08]} 40. Kh2 {[%clk 0:00:08]}  Qf2+ {[%clk 0:00:08]} 41. Kh1 {[%clk 0:00:08]}  Qf1+ {[%clk 0:00:09]} 42. Kh2 {[%clk 0:00:09]}  Qf2+ {[%clk 0:00:09]} 1/2-1/2


[Site "https://www.chess.com"]